fUSD/lending_fUSD_20250502
["ID","MTS","AMOUNT","RATE_DAILY","PERIOD"]
[359658724,1746226246821,-450.0,0.00019982,2]
[359658725,1746226246831,-450.0,0.00019982,2]
[359658726,1746226246843,-450.0,0.00019982,2]
[359658727,1746226246853,-450.0,0.00019982,2]
[359658728,1746226246862,-450.0,0.00019982,2]
[359658729,1746226246871,-450.0,0.00019982,2]
[359658730,1746226246881,-450.0,0.00019982,2]
[359658731,1746226246891,-450.0,0.00019982,2]
[359658732,1746226246900,-450.0,0.00019982,2]
[359658733,1746226246910,-450.0,0.00019982,2]
[359658734,1746226246920,-846.53,0.00019982,2]
[359658735,1746226246931,-450.0,0.00019982,2]
[359658736,1746226246941,-621.5,0.00019982,2]
[359658737,1746226246950,-450.0,0.00019982,2]
[359658738,1746226246961,-450.0,0.00019982,2]
[359658739,1746226246970,-450.0,0.00019982,2]
[359658740,1746226246979,-450.0,0.00019982,2]
[359658741,1746226246989,-450.0,0.00019982,2]
[359658742,1746226246998,-450.0,0.00019982,2]
[359658743,1746226247008,-450.0,0.00019982,2]
[359658744,1746226247018,-450.0,0.00019982,2]
[359658745,1746226247028,-450.0,0.00019982,2]
[359658746,1746226247037,-450.0,0.00019982,2]
[359658747,1746226247047,-489.46021491,0.00019982,2]
[359658748,1746226247057,-450.0,0.00019982,2]
[359658749,1746226247067,-450.0,0.00019982,2]
[359658750,1746226247076,-378.20806132,0.00019982,2]
[359658751,1746226247085,-450.0,0.00019982,2]
[359658752,1746226247096,-450.0,0.00019982,2]
[359658753,1746226247106,-450.0,0.00019982,2]
[359658754,1746226247115,-450.0,0.00019982,2]
[359658755,1746226247125,-450.0,0.00019982,2]
[359658756,1746226247134,-450.0,0.00019982,2]
[359658757,1746226247144,-450.0,0.00019982,2]
[359658758,1746226247153,-450.0,0.00019982,2]
[359658759,1746226247162,-450.0,0.00019982,2]
[359658760,1746226247172,-450.0,0.00019982,2]
[359658761,1746226247182,-450.0,0.00019982,2]
[359658762,1746226247191,-450.0,0.00019982,2]
[359658763,1746226247201,-450.0,0.00019982,2]
[359658764,1746226247210,-450.0,0.00019982,2]
[359658765,1746226247220,-450.0,0.00019982,2]
[359658766,1746226247230,-450.0,0.00019982,2]
[359658767,1746226247239,-450.0,0.00019982,2]
[359658768,1746226247248,-926.063764,0.00019982,2]
[359658769,1746226247258,-364.38940204,0.00019982,2]
[359658770,1746226247268,-450.0,0.00019982,2]
[359658771,1746226247277,-450.0,0.00019982,2]
[359658772,1746226247287,-628.77922,0.00019982,2]
[359658773,1746226247297,-450.0,0.00019982,2]
[359658774,1746226247307,-450.0,0.00019982,2]
[359658775,1746226247316,-450.0,0.00019982,2]
[359658776,1746226247326,-450.0,0.00019982,2]
[359658777,1746226247335,-720.44,0.00019982,2]
[359658778,1746226247345,-450.0,0.00019982,2]
[359658779,1746226247354,-450.0,0.00019982,2]
[359658780,1746226247364,-450.0,0.00019982,2]
[359658781,1746226247374,-7558.35,0.00019982,2]
[359658782,1746226247384,-450.0,0.00019982,2]
[359658783,1746226247394,-450.0,0.00019982,2]
[359658784,1746226247403,-798.92,0.00019982,2]
[359658785,1746226247412,-909.79,0.00019982,2]
[359658786,1746226247422,-450.0,0.00019982,2]
[359658787,1746226247431,-958.49,0.00019982,2]
[359658788,1746226247439,-450.0,0.00019982,2]
[359658789,1746226247447,-542.05,0.00019982,2]
[359658790,1746226247457,-450.0,0.00019982,2]
[359658791,1746226247465,-450.0,0.00019982,2]
[359658792,1746226247474,-450.0,0.00019982,2]
[359658793,1746226247484,-5830.02,0.00019982,2]
[359658794,1746226247492,-471.64,0.00019982,2]
[359658795,1746226247500,-450.0,0.00019982,2]
[359658796,1746226247509,-463.07,0.00019982,2]
[359658797,1746226247517,-450.0,0.00019982,2]
[359658798,1746226247526,-470.22,0.00019982,2]
[359658799,1746226247535,-450.0,0.00019982,2]
[359658800,1746226247544,-450.0,0.00019982,2]
[359658801,1746226247554,-450.0,0.00019982,2]
[359658802,1746226247564,-450.0,0.00019982,2]
[359658803,1746226247573,-453.64,0.00019982,2]
[359658804,1746226247583,-450.0,0.00019982,2]
[359658805,1746226247593,-450.0,0.00019982,2]
[359658806,1746226247602,-450.0,0.00019982,2]
[359658807,1746226247612,-970.8,0.00019982,2]
[359658808,1746226247621,-450.0,0.00019982,2]
[359658809,1746226247631,-522.09,0.00019982,2]
[359658810,1746226247640,-450.0,0.00019982,2]
[359658811,1746226247650,-450.0,0.00019982,2]
[359658812,1746226247659,-450.0,0.00019982,2]
[359658813,1746226247668,-234.39097713,0.00019982,2]
[359658814,1746226247678,-450.0,0.00019982,2]
[359658815,1746226247687,-468.23,0.00019982,2]
[359658816,1746226247696,-450.0,0.00019982,2]
[359658817,1746226247706,-599.84,0.00019982,2]
[359658818,1746226247716,-450.0,0.00019982,2]
[359658819,1746226247725,-450.0,0.00019982,2]
[359658820,1746226247734,-450.0,0.00019982,2]
[359658821,1746226247744,-450.0,0.00019982,2]
[359658822,1746226247754,-450.0,0.00019982,2]
[359658823,1746226247763,-696.06,0.00019982,2]
[359658824,1746226247773,-450.0,0.00019982,2]
[359658825,1746226247782,-450.0,0.00019982,2]
[359658826,1746226247791,-450.0,0.00019982,2]
[359658827,1746226247801,-450.0,0.00019982,2]
[359658828,1746226247810,-450.0,0.00019982,2]
[359658829,1746226247819,-572.8,0.00019982,2]
[359658830,1746226247828,-2274.7,0.00019982,2]
[359658831,1746226247841,-450.0,0.00019982,2]
[359658832,1746226247851,-450.0,0.00019982,2]
[359658833,1746226247861,-534.16,0.00019982,2]
[359658834,1746226247870,-450.0,0.00019982,2]
[359658835,1746226247881,-450.0,0.00019982,2]
[359658836,1746226247890,-495.33,0.00019982,2]
[359658837,1746226247899,-450.0,0.00019982,2]
[359658838,1746226247909,-450.0,0.00019982,2]
[359658839,1746226247918,-450.0,0.00019982,2]
[359658840,1746226247928,-109366.61,0.00019982,2]
[359658841,1746226247937,-450.0,0.00019982,2]
[359658842,1746226247946,-450.0,0.00019982,2]
[359658843,1746226247955,-450.0,0.00019982,2]
[359658844,1746226247965,-553.27,0.00019982,2]
[359658845,1746226247974,-450.0,0.00019982,2]
[359658846,1746226247983,-1237.9,0.00019982,2]
[359658847,1746226247991,-450.0,0.00019982,2]
[359658848,1746226248001,-450.0,0.00019982,2]
[359658849,1746226248010,-491.53,0.00019982,2]
[359658850,1746226248020,-450.0,0.00019982,2]
[359658851,1746226248029,-450.0,0.00019982,2]
[359658852,1746226248039,-453.39,0.00019982,2]
[359658853,1746226248049,-450.0,0.00019982,2]
[359658854,1746226248058,-450.0,0.00019982,2]
[359658855,1746226248068,-879.91,0.00019982,2]
[359658856,1746226248077,-525.84,0.00019982,2]
[359658857,1746226248086,-450.0,0.00019982,2]
[359658858,1746226248095,-1560.92,0.00019982,2]
[359658859,1746226248105,-450.0,0.00019982,2]
[359658860,1746226248115,-450.0,0.00019982,2]
[359658861,1746226248124,-5002.08,0.00019982,2]
[359658862,1746226248134,-450.0,0.00019982,2]
[359658863,1746226248144,-1060.02,0.00019982,2]
[359658864,1746226248154,-450.0,0.00019982,2]
[359658865,1746226248164,-450.0,0.00019982,2]
[359658866,1746226248174,-450.0,0.00019982,2]
[359658867,1746226248183,-450.0,0.00019982,2]
[359658868,1746226248193,-450.0,0.00019982,2]
[359658869,1746226248202,-450.0,0.00019982,2]
[359658870,1746226248212,-709.81,0.00019982,2]
[359658871,1746226248221,-586.22,0.00019982,2]
[359658872,1746226248231,-537.58,0.00019982,2]
[359658873,1746226248241,-450.0,0.00019982,2]
[359658874,1746226248250,-450.0,0.00019982,2]
[359658875,1746226248261,-450.0,0.00019982,2]
[359658876,1746226248270,-450.0,0.00019982,2]
[359658877,1746226248280,-450.0,0.00019982,2]
[359658878,1746226248289,-450.0,0.00019982,2]
[359658879,1746226248298,-450.0,0.00019982,2]
[359658880,1746226248307,-450.0,0.00019982,2]
[359658881,1746226248317,-529.7,0.00019982,2]
[359658882,1746226248326,-464.24,0.00019982,2]
[359658883,1746226248335,-1082.35,0.00019982,2]
[359658884,1746226248345,-450.0,0.00019982,2]
[359658885,1746226248355,-520.96,0.00019982,2]
[359658886,1746226248364,-1444.96,0.00019982,2]
[359658887,1746226248374,-521.61,0.00019982,2]
[359658888,1746226248383,-450.0,0.00019982,2]
[359658889,1746226248392,-450.0,0.00019982,2]
[359658890,1746226248402,-1617.38,0.00019982,2]
[359658891,1746226248411,-545.12,0.00019982,2]
[359658892,1746226248421,-950.63,0.00019982,2]
[359658893,1746226248430,-1592.92,0.00019982,2]
[359658894,1746226248439,-3233.08,0.00019982,2]
[359658895,1746226248448,-450.0,0.00019982,2]
[359658896,1746226248458,-450.0,0.00019982,2]
[359658897,1746226248467,-450.0,0.00019982,2]
[359658898,1746226248477,-450.0,0.00019982,2]
[359658899,1746226248487,-450.0,0.00019982,2]
[359658900,1746226248496,-508.22,0.00019982,2]
[359658901,1746226248506,-663.68,0.00019982,2]
[359658902,1746226248515,-501.53,0.00019982,2]
[359658903,1746226248525,-450.0,0.00019982,2]
[359658904,1746226248534,-450.0,0.00019982,2]
[359658905,1746226248544,-450.0,0.00019983,2]
[359658906,1746226248553,-450.0,0.00019983,2]
[359658907,1746226248562,-450.0,0.00019983,2]
[359658908,1746226248572,-450.0,0.00019983,2]
[359658909,1746226248581,-450.0,0.00019983,2]
[359658910,1746226248591,-450.0,0.00019983,2]
[359658911,1746226248601,-450.0,0.00019983,2]
[359658912,1746226248611,-626.43,0.00019983,2]
[359658913,1746226248620,-508.02824913,0.00019983,2]
[359658914,1746226248630,-450.0,0.00019983,2]
[359658915,1746226248639,-453.96,0.00019983,2]
[359658916,1746226248649,-450.0,0.00019983,2]
[359658917,1746226248658,-450.0,0.00019983,2]
[359658918,1746226248668,-450.0,0.00019983,2]
[359658919,1746226248677,-450.0,0.00019983,2]
[359658920,1746226248687,-450.0,0.00019983,2]
[359658921,1746226248696,-450.0,0.00019983,2]
[359658922,1746226248706,-450.0,0.00019983,2]
[359658923,1746226248715,-450.0,0.00019983,2]
[359658924,1746226248725,-450.0,0.00019983,2]
[359658925,1746226248735,-450.0,0.00019983,2]
[359658926,1746226248744,-450.0,0.00019983,2]
[359658927,1746226248753,-450.0,0.00019983,2]
[359658928,1746226248763,-450.0,0.00019983,2]
[359658929,1746226248772,-495.08,0.00019983,2]
[359658930,1746226248782,-450.0,0.00019983,2]
[359658931,1746226248792,-450.0,0.00019983,2]
[359658932,1746226248802,-450.0,0.00019983,2]
[359658933,1746226248811,-450.0,0.00019983,2]
[359658934,1746226248821,-560.72,0.00019983,2]
[359658935,1746226248831,-450.0,0.00019983,2]
[359658936,1746226248845,-549.73564454,0.00019983,2]
[359658937,1746226248855,-450.0,0.00019983,2]
[359658938,1746226248865,-450.0,0.00019983,2]
[359658939,1746226248875,-450.0,0.00019983,2]
[359658940,1746226248886,-450.0,0.00019983,2]
[359658941,1746226248895,-450.0,0.00019983,2]
[359658942,1746226248905,-587.91,0.00019983,2]
[359658943,1746226248917,-450.0,0.00019983,2]
[359658944,1746226248927,-337.06400703,0.00019983,2]
[359658945,1746226248937,-450.0,0.00019983,2]
[359658946,1746226248946,-715.99,0.00019983,2]
[359658947,1746226248956,-450.0,0.00019983,2]
[359658948,1746226248966,-511.19,0.00019983,2]
[359658949,1746226248976,-526.73,0.00019983,2]
[359658950,1746226248986,-450.0,0.00019983,2]
[359658951,1746226248995,-450.0,0.00019983,2]
[359658952,1746226249006,-450.0,0.00019983,2]
[359658953,1746226249015,-450.0,0.00019983,2]
[359658954,1746226249025,-450.0,0.00019983,2]
[359658955,1746226249034,-450.0,0.00019983,2]
[359658956,1746226249044,-450.0,0.00019983,2]
[359658957,1746226249053,-450.0,0.00019983,2]
[359658958,1746226249063,-450.0,0.00019983,2]
[359658959,1746226249073,-450.0,0.00019983,2]
[359658960,1746226249083,-450.0,0.00019983,2]
[359658961,1746226249094,-450.0,0.00019983,2]
[359658962,1746226249103,-450.0,0.00019983,2]
[359658963,1746226249113,-615.22,0.00019983,2]
[359658964,1746226249122,-450.0,0.00019983,2]
[359658965,1746226249131,-450.0,0.00019983,2]
[359658966,1746226249141,-556.5,0.00019983,2]
[359658967,1746226249150,-450.0,0.00019983,2]
[359658968,1746226249160,-450.0,0.00019983,2]
[359658969,1746226249170,-1041.08,0.00019983,2]
[359658970,1746226249180,-450.0,0.00019983,2]
[359658971,1746226249190,-450.0,0.00019983,2]
[359658972,1746226249199,-472.31764425,0.00019983,2]
[359658973,1746226249209,-450.0,0.00019983,2]
[359658974,1746226249219,-450.0,0.00019983,2]
[359658975,1746226249229,-450.0,0.00019983,2]
[359658976,1746226249240,-450.0,0.00019983,2]
[359658977,1746226249249,-450.0,0.00019983,2]
[359658978,1746226249259,-205.70456391,0.00019983,2]
[359658979,1746226249269,-592.78,0.00019983,2]
[359658980,1746226249279,-469.32,0.00019983,2]
[359658981,1746226249288,-300.0,0.00019983,2]
[359658982,1746226249297,-1010.54,0.00019983,2]
[359658983,1746226249307,-579.98,0.00019983,2]
[359658984,1746226249317,-509.27,0.00019983,2]
[359658985,1746226249327,-1533.95,0.00019983,2]
[359658986,1746226249336,-450.0,0.00019983,2]
[359658987,1746226249346,-450.0,0.00019983,2]
[359658988,1746226249356,-450.0,0.00019983,2]
[359658989,1746226249365,-450.0,0.00019983,2]
[359658990,1746226249376,-450.0,0.00019983,2]
[359658991,1746226249386,-735.45,0.00019983,2]
[359658992,1746226249396,-450.0,0.00019983,2]
[359658993,1746226249405,-450.0,0.00019983,2]
[359658994,1746226249415,-450.0,0.00019983,2]
[359658995,1746226249425,-562.75,0.00019983,2]
[359658996,1746226249435,-520.66,0.00019983,2]
[359658997,1746226249444,-450.0,0.00019983,2]
[359658998,1746226249455,-450.0,0.00019983,2]
[359658999,1746226249465,-560.6,0.00019983,2]
[359659000,1746226249475,-841.88,0.00019983,2]
[359659001,1746226249485,-508.05,0.00019983,2]
[359659002,1746226249495,-622.97,0.00019983,2]
[359659003,1746226249506,-450.0,0.00019983,2]
[359659004,1746226249516,-450.0,0.00019983,2]
[359659005,1746226249526,-450.0,0.00019983,2]
[359659006,1746226249536,-450.0,0.00019983,2]
[359659007,1746226249621,-450.0,0.00019983,2]
[359659008,1746226249639,-720.63,0.00019983,2]
[359659009,1746226249649,-450.0,0.00019983,2]
[359659010,1746226249659,-424.60009718,0.00019983,2]
[359659011,1746226249669,-450.0,0.00019983,2]
[359659012,1746226249678,-450.0,0.00019983,2]
[359659013,1746226249688,-450.0,0.00019983,2]
[359659014,1746226249698,-628.84,0.00019983,2]
[359659015,1746226249708,-450.0,0.00019983,2]
[359659016,1746226249718,-450.0,0.00019983,2]
[359659017,1746226249727,-729.42,0.00019983,2]
[359659018,1746226249737,-1759.02,0.00019983,2]
[359659019,1746226249747,-450.0,0.00019983,2]
[359659020,1746226249757,-2544.84,0.00019983,2]
[359659021,1746226249767,-720.17,0.00019983,2]
[359659022,1746226249777,-630.16,0.00019983,2]
[359659023,1746226249787,-540.15711062,0.00019983,2]
[359659024,1746226249797,-450.0,0.00019983,2]
[359659025,1746226249808,-450.0,0.00019983,2]
[359659026,1746226249819,-450.0,0.00019983,2]
[359659027,1746226249828,-450.0,0.00019983,2]
[359659028,1746226249842,-671.83,0.00019983,2]
[359659029,1746226249852,-1101.69,0.00019983,2]
[359659030,1746226249862,-450.0,0.00019983,2]
[359659031,1746226249872,-450.0,0.00019983,2]
[359659032,1746226249882,-450.0,0.00019983,2]
[359659033,1746226249892,-505.1,0.00019983,2]
[359659034,1746226249902,-450.0,0.00019983,2]
[359659035,1746226249914,-813.48,0.00019983,2]
[359659036,1746226249924,-450.0,0.00019983,2]
[359659037,1746226249934,-1145.72,0.00019983,2]
[359659038,1746226249944,-450.0,0.00019983,2]
[359659039,1746226249954,-1187.2,0.00019983,2]
[359659040,1746226249965,-450.0,0.00019983,2]
[359659041,1746226249975,-450.0,0.00019983,2]
[359659042,1746226249984,-450.0,0.00019983,2]
[359659043,1746226249995,-450.0,0.00019983,2]
[359659044,1746226250005,-450.0,0.00019983,2]
[359659045,1746226250016,-450.0,0.00019983,2]
[359659046,1746226250026,-761.92,0.00019983,2]
[359659047,1746226250036,-450.0,0.00019983,2]
[359659048,1746226250045,-567.54,0.00019983,2]
[359659049,1746226250055,-544.52,0.00019983,2]
[359659050,1746226250065,-450.0,0.00019983,2]
[359659051,1746226250074,-973.1,0.00019983,2]
[359659052,1746226250084,-450.0,0.00019983,2]
[359659053,1746226250094,-560.05773253,0.00019983,2]
[359659054,1746226250104,-789.26,0.00019983,2]
[359659055,1746226250114,-1225.36,0.00019983,2]
[359659056,1746226250124,-450.0,0.00019983,2]
[359659057,1746226250134,-450.0,0.00019983,2]
[359659058,1746226250143,-478.65,0.00019983,2]
[359659059,1746226250153,-858.26,0.00019983,2]
[359659060,1746226250163,-450.0,0.00019983,2]
[359659061,1746226250172,-592.9,0.00019983,2]
[359659062,1746226250182,-503.42,0.00019983,2]
[359659063,1746226250192,-450.0,0.00019983,2]
[359659064,1746226250202,-3821.05,0.00019983,2]
[359659065,1746226250211,-1615.15,0.00019983,2]
[359659066,1746226250221,-450.0,0.00019983,2]
[359659067,1746226250231,-666.0,0.00019983,2]
[359659068,1746226250241,-615.73,0.00019983,2]
[359659069,1746226250251,-4539.71,0.00019983,2]
[359659070,1746226250260,-4228.36,0.00019983,2]
[359659071,1746226250270,-450.0,0.00019983,2]
[359659072,1746226250280,-470.32,0.00019983,2]
[359659073,1746226250289,-450.0,0.00019983,2]
[359659074,1746226250299,-450.0,0.00019983,2]
[359659075,1746226250310,-452.44,0.00019983,2]
[359659076,1746226250321,-4536.98,0.00019983,2]
[359659077,1746226250333,-954.34,0.00019983,2]
[359659078,1746226250343,-91887.49,0.00019983,2]
[359659079,1746226250353,-800.08,0.00019983,2]
[359659080,1746226250362,-450.0,0.00019983,2]
[359659081,1746226250372,-450.0,0.00019983,2]
[359659082,1746226250382,-5388.55,0.00019983,2]
[359659083,1746226250392,-2414.06,0.00019983,2]
[359659084,1746226250402,-450.0,0.00019983,2]
[359659085,1746226250412,-29787.56,0.00019983,2]
[359659086,1746226250422,-1056.3,0.00019983,2]
[359659087,1746226250431,-450.0,0.00019983,2]
[359659088,1746226250441,-450.0,0.00019983,2]
[359659089,1746226250451,-725.16,0.00019983,2]
[359659090,1746226250461,-16626.94,0.00019983,2]
[359659091,1746226250471,-2204.44,0.00019983,2]
[359659092,1746226250481,-450.0,0.00019983,2]
[359659093,1746226250491,-716.74,0.00019983,2]
[359659094,1746226250500,-576.35,0.00019983,2]
[359659095,1746226250511,-450.0,0.00019984,2]
[359659096,1746226250520,-1824.0,0.00019986,2]
[359659097,1746226250530,-8031.1282579,0.00019986,2]
[359659098,1746226250540,-13012.8914668,0.00019986,2]
[359659099,1746226250549,-152229.7461058,0.00019986,2]
[359659100,1746226250559,-1067.6490966,0.00019986,2]
[359659101,1746226250568,-500.0,0.00019988,2]
[359659102,1746226250579,-500.0,0.00019988,2]
[359659103,1746226250588,-500.0,0.00019988,2]
[359659104,1746226250598,-423.0,0.00019988,2]
[359659105,1746226250609,-227.99932382,0.00019988,2]
[359659106,1746226250619,-500.0,0.00019988,2]
[359659107,1746226250629,-150.0,0.00019988,2]
[359659108,1746226250639,-500.0,0.00019988,2]
[359659109,1746226250648,-437.0,0.00019988,2]
[359659110,1746226250658,-500.0,0.00019988,2]
[359659111,1746226250668,-500.0,0.00019988,2]
[359659112,1746226250677,-500.0,0.00019988,2]
[359659113,1746226250687,-500.0,0.00019988,2]
[359659114,1746226250697,-500.0,0.00019988,2]
[359659115,1746226250706,-150.0,0.00019988,2]
[359659116,1746226250716,-150.0,0.00019988,2]
[359659117,1746226250726,-1074.92705239,0.0001999,2]
[359659118,1746226250735,-1074.92705239,0.0001999,2]
[359659119,1746226250745,-150.0,0.00019992,2]
[359659120,1746226250755,-500.0,0.00019999,2]
[359659121,1746226250765,-675.05638042,0.00019999,2]
[359659122,1746226250775,-334.77930665,0.00019999,2]
[359659123,1746226250784,-300.0,0.00019999,2]
[359659124,1746226250793,-300.0,0.00019999,2]
[359659125,1746226250803,-3972.5,0.00019999,2]
[359659126,1746226250813,-259.59690718,0.0002,2]
[359659127,1746226250822,-539939.9504825,0.0002,2]
[359659128,1746226250833,-1064789.6178406,0.0002,2]
[359659129,1746226250845,-822318.05014603,0.0002,2]
[359659130,1746226250855,-3950.0,0.0002,2]
[359659131,1746226250864,-1252.18185823,0.0002,2]
[359659132,1746226250873,-11846.75954341,0.0002,2]
[359659133,1746226250884,-1010.35543281,0.0002,2]
[359659134,1746226250894,-1762.8695288,0.0002,2]
[359659135,1746226250904,-88973.10531121,0.0002,2]
[359659136,1746226250915,-1782.67,0.0002,2]
[359659137,1746226250926,-250.0,0.0002,2]
[359659138,1746226250936,-250.0,0.0002,2]
[359659139,1746226250946,-250.0,0.0002,2]
[359659140,1746226250955,-250.0,0.0002,2]
[359659141,1746226250965,-250.0,0.0002,2]
[359659142,1746226250974,-250.0,0.0002,2]
[359659143,1746226250984,-250.0,0.0002,2]
[359659144,1746226250994,-250.0,0.0002,2]
[359659145,1746226251004,-250.0,0.0002,2]
[359659146,1746226251013,-250.0,0.0002,2]
[359659147,1746226251023,-367.2,0.0002,2]
[359659148,1746226251032,-356018.90200323,0.0002,2]
[359659149,1746226251662,-1402.275,0.0002,2]
[359659150,1746226251674,-4571.98912978,0.0002,2]
[359659151,1746226253659,-628.92626895,0.0002,2]
[359659152,1746226254116,-450.0,0.00019707,2]
[359659153,1746226254126,-450.0,0.00019708,2]
[359659154,1746226254135,-450.0,0.00019708,2]
[359659155,1746226254144,-348.025,0.00019708,2]
[359659156,1746226254155,-101.975,0.00019708,2]
[359659157,1746226254164,-435.80035699,0.00019708,2]
[359659158,1746226254183,-27.62964301,0.00019708,2]
[359659159,1746226254193,-151.0,0.0001988,2]
[359659160,1746226254202,-260.92236119,0.000199,2]
[359659161,1746226264571,-194.13,0.00019707,2]
[359659164,1746226458208,382.29389,0.0002595,36]
[359659166,1746226596898,237.94,0.00018873,2]
[359659168,1746226651592,194.13,0.00018761,2]
[359659169,1746226836236,-187.11466006,0.00019508,2]
[359659170,1746226857818,250.0,0.00017,2]
[359659171,1746226859023,300.0,0.00019,2]
[359659172,1746227024763,1000.0,0.00018755,2]
[359659173,1746227055686,256.59,0.00019178,2]
[359659174,1746227068557,382.29389,0.0001993,23]
[359659175,1746227103714,166.66,0.00019359,2]
[359659176,1746227170077,542.9,0.00016879,2]
[359659177,1746227170315,542.9,0.00019143,2]
[359659185,1746227361880,175.57,0.00018781,2]
[359659191,1746227431960,-1200.0,0.00019606,2]
[359659192,1746227431970,-300.0,0.00019606,2]
[359659193,1746227431979,-1440.9999996,0.00019607,2]
[359659194,1746227431991,-2194.14691759,0.00019607,2]
[359659195,1746227432000,-2653.89989039,0.00019607,2]
[359659196,1746227432010,-250.0,0.00019624,2]
[359659197,1746227432019,-3635.1469171,0.0001964,2]
[359659198,1746227432028,-2653.89989039,0.0001964,2]
[359659199,1746227432037,-3635.1469171,0.00019672,2]
[359659200,1746227432047,-2653.89989039,0.00019672,2]
[359659201,1746227432057,-3635.1469171,0.00019705,2]
[359659202,1746227432066,-2653.89989039,0.00019705,2]
[359659203,1746227432075,-215.0,0.00019706,2]
[359659205,1746227432085,-618.021663,0.00019706,2]
[359659207,1746227432095,-721.02,0.00019706,2]
[359659209,1746227432104,-905.535257,0.00019706,2]
[359659211,1746227432114,-168.44821842,0.00019706,2]
[359659213,1746227432123,-450.0,0.00019706,2]
[359659216,1746227432134,-450.0,0.00019706,2]
[359659218,1746227432143,-450.0,0.00019706,2]
[359659220,1746227432153,-450.0,0.00019706,2]
[359659222,1746227432162,-566.61,0.00019706,2]
[359659224,1746227432172,-7559.79,0.00019706,2]
[359659226,1746227432181,-450.0,0.00019706,2]
[359659227,1746227432191,-450.0,0.00019706,2]
[359659228,1746227432200,-450.0,0.00019706,2]
[359659229,1746227432209,-450.0,0.00019706,2]
[359659230,1746227432219,-450.0,0.00019706,2]
[359659231,1746227432228,-450.0,0.00019706,2]
[359659232,1746227432238,-450.0,0.00019706,2]
[359659233,1746227432247,-450.0,0.00019706,2]
[359659234,1746227432256,-450.0,0.00019706,2]
[359659235,1746227432266,-450.0,0.00019706,2]
[359659236,1746227432276,-450.0,0.00019706,2]
[359659237,1746227432285,-450.0,0.00019706,2]
[359659238,1746227432295,-450.0,0.00019706,2]
[359659239,1746227432305,-450.0,0.00019706,2]
[359659240,1746227432314,-186.59084408,0.00019706,2]
[359659241,1746227432323,-534.2,0.00019706,2]
[359659242,1746227432333,-450.0,0.00019706,2]
[359659243,1746227432342,-450.0,0.00019706,2]
[359659244,1746227432352,-450.0,0.00019706,2]
[359659245,1746227432362,-450.0,0.00019706,2]
[359659246,1746227432371,-65689.87101287,0.00019706,2]
[359659247,1746227432384,-44164.32088465,0.00019706,2]
[359659248,1746227432411,-4068.29810248,0.00019706,2]
[359659249,1746227432420,-450.0,0.00019706,2]
[359659250,1746227432429,-38.45689752,0.00019706,2]
[359659254,1746227437723,-500.0,0.00019698,2]